fUSD/lending_fUSD_20250112
["ID","MTS","AMOUNT","RATE_DAILY","PERIOD"]
[348632915,1736691053344,-564.18,0.00010517,2]
[348632916,1736691053353,-500.0,0.00010517,2]
[348632917,1736691053363,-500.0,0.00010517,2]
[348632918,1736691053372,-599.43,0.00010517,2]
[348632919,1736691053381,-521.28,0.00010517,2]
[348632920,1736691053390,-500.0,0.00010517,2]
[348632921,1736691053400,-571.6730656,0.00010517,2]
[348632922,1736691053409,-500.0,0.00010517,2]
[348632923,1736691053418,-216.73336644,0.00010517,2]
[348632924,1736691053427,-500.0,0.00010517,2]
[348632925,1736691053437,-500.0,0.00010517,2]
[348632926,1736691053446,-500.0,0.00010517,2]
[348632927,1736691053455,-500.0,0.00010517,2]
[348632928,1736691053464,-612.25,0.00010517,2]
[348632929,1736691053474,-500.0,0.00010517,2]
[348632930,1736691053483,-500.0,0.00010517,2]
[348632931,1736691053492,-771.97,0.00010517,2]
[348632932,1736691053502,-746.08,0.00010517,2]
[348632933,1736691053511,-823.3,0.00010517,2]
[348632934,1736691053521,-500.0,0.00010517,2]
[348632935,1736691053531,-500.0,0.00010517,2]
[348632936,1736691053540,-832.54,0.00010517,2]
[348632937,1736691053550,-506.71555151,0.00010517,2]
[348632938,1736691053565,-536.52,0.00010517,2]
[348632939,1736691053574,-507.67736187,0.00010517,2]
[348632940,1736691053583,-500.0,0.00010517,2]
[348632941,1736691053592,-491.74730206,0.00010517,2]
[348632942,1736691053604,-906.07,0.00010517,2]
[348632943,1736691053613,-500.0,0.00010517,2]
[348632944,1736691053623,-846.45,0.00010517,2]
[348632945,1736691053632,-500.0,0.00010517,2]
[348632946,1736691053641,-500.0,0.00010517,2]
[348632947,1736691053651,-730.46,0.00010517,2]
[348632948,1736691053660,-500.0,0.00010517,2]
[348632949,1736691053669,-512.88,0.00010517,2]
[348632950,1736691053678,-500.0,0.00010517,2]
[348632951,1736691053688,-780.29,0.00010517,2]
[348632952,1736691053697,-946.1,0.00010517,2]
[348632953,1736691053706,-739.33,0.00010517,2]
[348632954,1736691053715,-513.5,0.00010517,2]
[348632955,1736691053725,-500.0,0.00010517,2]
[348632956,1736691053735,-2891.62,0.00010517,2]
[348632957,1736691053744,-539.77,0.00010517,2]
[348632958,1736691053754,-945.58,0.00010517,2]
[348632959,1736691053763,-556.11,0.00010517,2]
[348632960,1736691053773,-1234.54,0.00010517,2]
[348632961,1736691053782,-508.91888859,0.00010517,2]
[348632962,1736691053791,-500.0,0.00010517,2]
[348632963,1736691053800,-954.47,0.00010517,2]
[348632964,1736691053810,-199.52248551,0.00010517,2]
[348632965,1736691053820,-2764.81,0.00010517,2]
[348632966,1736691053829,-583.26,0.00010517,2]
[348632967,1736691053839,-385.59468069,0.00010517,2]
[348632968,1736691053848,-881.07,0.00010517,2]
[348632969,1736691053858,-639.94,0.00010517,2]
[348632970,1736691053867,-505.8999662,0.00010517,2]
[348632971,1736691053876,-541.38,0.00010517,2]
[348632972,1736691053886,-1156.13,0.00010517,2]
[348632973,1736691053897,-9249.95,0.00010517,2]
[348632974,1736691053907,-799.31,0.00010517,2]
[348632975,1736691053917,-500.0,0.00010517,2]
[348632976,1736691053928,-500.0,0.00010517,2]
[348632977,1736691053938,-939.49,0.00010517,2]
[348632978,1736691053948,-500.0,0.00010517,2]
[348632979,1736691053958,-573.6,0.00010517,2]
[348632980,1736691053967,-970.72,0.00010517,2]
[348632981,1736691053978,-500.0,0.00010517,2]
[348632982,1736691053987,-502.42,0.00010517,2]
[348632983,1736691053997,-500.0,0.00010517,2]
[348632984,1736691054007,-4976.97,0.00010517,2]
[348632985,1736691054016,-616.63,0.00010517,2]
[348632986,1736691054025,-500.0,0.00010517,2]
[348632987,1736691054035,-500.0,0.00010517,2]
[348632988,1736691054044,-1304.87,0.00010517,2]
[348632989,1736691054053,-508.98469171,0.00010517,2]
[348632990,1736691054063,-578.76554653,0.00010517,2]
[348632991,1736691054072,-1044.07,0.00010517,2]
[348632992,1736691054082,-1010.03,0.00010517,2]
[348632993,1736691054091,-500.0,0.00010517,2]
[348632994,1736691054101,-525.89,0.00010517,2]
[348632995,1736691054110,-2557.54,0.00010517,2]
[348632996,1736691054120,-999.61,0.00010517,2]
[348632997,1736691054129,-192.8,0.00010517,2]
[348632998,1736691054139,-600.68,0.00010517,2]
[348632999,1736691054148,-500.0,0.00010517,2]
[348633000,1736691054157,-500.0,0.00010517,2]
[348633001,1736691054167,-500.0,0.00010517,2]
[348633002,1736691054176,-500.0,0.00010517,2]
[348633003,1736691054185,-3438.24,0.00010517,2]
[348633004,1736691054194,-655.87,0.00010517,2]
[348633005,1736691054204,-2404.43,0.00010517,2]
[348633006,1736691054213,-500.0,0.00010517,2]
[348633007,1736691054223,-500.0,0.00010517,2]
[348633008,1736691054233,-500.0,0.00010517,2]
[348633009,1736691054242,-1014.52,0.00010517,2]
[348633010,1736691054251,-1543.51,0.00010517,2]
[348633011,1736691054262,-500.0,0.00010517,2]
[348633012,1736691054271,-714.21,0.00010517,2]
[348633013,1736691054281,-500.0,0.00010517,2]
[348633014,1736691054290,-793.41,0.00010517,2]
[348633015,1736691054300,-643.1,0.00010517,2]
[348633016,1736691054309,-1105.81,0.00010517,2]
[348633017,1736691054319,-584.24,0.00010517,2]
[348633018,1736691054328,-500.0,0.00010517,2]
[348633019,1736691054337,-528.87,0.00010517,2]
[348633020,1736691054348,-500.0,0.00010517,2]
[348633021,1736691054357,-3597.96,0.00010517,2]
[348633022,1736691054367,-507.23,0.00010517,2]
[348633023,1736691054376,-564.53,0.00010517,2]
[348633024,1736691054386,-2317.69,0.00010517,2]
[348633025,1736691054395,-500.0,0.00010517,2]
[348633026,1736691054405,-500.0,0.00010517,2]
[348633027,1736691054415,-500.0,0.00010517,2]
[348633028,1736691054424,-500.0,0.00010517,2]
[348633029,1736691054434,-500.0,0.00010517,2]
[348633030,1736691054444,-505.15,0.00010517,2]
[348633031,1736691054454,-459.15574015,0.00010517,2]
[348633032,1736691054463,-500.0,0.00010517,2]
[348633033,1736691054473,-500.0,0.00010517,2]
[348633034,1736691054482,-749.03,0.00010517,2]
[348633035,1736691054492,-1833.34,0.00010517,2]
[348633036,1736691054501,-500.0,0.00010517,2]
[348633037,1736691054511,-539.28,0.00010517,2]
[348633038,1736691054520,-500.0,0.00010517,2]
[348633039,1736691054531,-905.76,0.00010517,2]
[348633040,1736691054542,-717.57,0.00010517,2]
[348633041,1736691054551,-500.0,0.00010517,2]
[348633042,1736691054565,-500.0,0.00010517,2]
[348633043,1736691054574,-949.36,0.00010517,2]
[348633044,1736691054583,-160.46235172,0.00010517,2]
[348633045,1736691054593,-893.69,0.00010517,2]
[348633046,1736691054603,-500.0,0.00010517,2]
[348633047,1736691054612,-676.39,0.00010518,2]
[348633048,1736691054622,-500.0,0.00010518,2]
[348633049,1736691054632,-500.0,0.00010518,2]
[348633050,1736691054641,-500.0,0.00010518,2]
[348633051,1736691054651,-500.0,0.00010518,2]
[348633052,1736691054660,-500.0,0.00010518,2]
[348633053,1736691054670,-500.0,0.00010518,2]
[348633054,1736691054681,-500.0,0.00010518,2]
[348633055,1736691054692,-641.01,0.00010518,2]
[348633056,1736691054701,-695.45,0.00010518,2]
[348633057,1736691054712,-500.0,0.00010518,2]
[348633058,1736691054722,-500.0,0.00010518,2]
[348633059,1736691054731,-500.0,0.00010518,2]
[348633060,1736691054740,-500.0,0.00010518,2]
[348633061,1736691054750,-500.0,0.00010518,2]
[348633062,1736691054759,-500.0,0.00010518,2]
[348633063,1736691054768,-675.02,0.00010518,2]
[348633064,1736691054778,-500.0,0.00010518,2]
[348633065,1736691054787,-564.97,0.00010518,2]
[348633066,1736691054796,-627.98,0.00010518,2]
[348633067,1736691054806,-500.0,0.00010518,2]
[348633068,1736691054815,-511.85,0.00010518,2]
[348633069,1736691054825,-740.19,0.00010518,2]
[348633070,1736691054834,-500.0,0.00010518,2]
[348633071,1736691054844,-500.0,0.00010518,2]
[348633072,1736691054854,-500.0,0.00010518,2]
[348633073,1736691054864,-800.91,0.00010518,2]
[348633074,1736691054875,-500.0,0.00010518,2]
[348633075,1736691054884,-600.8,0.00010518,2]
[348633076,1736691054894,-567.6,0.00010518,2]
[348633077,1736691054905,-823.24,0.00010518,2]
[348633078,1736691054915,-500.0,0.00010518,2]
[348633079,1736691054926,-500.0,0.00010518,2]
[348633080,1736691054936,-500.0,0.00010518,2]
[348633081,1736691054945,-500.0,0.00010518,2]
[348633082,1736691054955,-500.0,0.00010518,2]
[348633083,1736691054964,-550.02,0.00010518,2]
[348633084,1736691054974,-500.0,0.00010518,2]
[348633085,1736691054983,-500.0,0.00010518,2]
[348633086,1736691054993,-500.0,0.00010518,2]
[348633087,1736691055002,-1049.98,0.00010518,2]
[348633088,1736691055011,-1472.39,0.00010518,2]
[348633089,1736691055021,-1472.39,0.00010518,2]
[348633090,1736691055032,-500.0,0.00010518,2]
[348633091,1736691055041,-625.07,0.00010518,2]
[348633092,1736691055051,-952.29,0.00010518,2]
[348633093,1736691055061,-500.0,0.00010518,2]
[348633094,1736691055071,-3133.59,0.00010518,2]
[348633095,1736691055080,-500.0,0.00010518,2]
[348633096,1736691055090,-3003.03,0.00010518,2]
[348633097,1736691055100,-500.0,0.00010518,2]
[348633098,1736691055109,-1007.73,0.00010518,2]
[348633099,1736691055119,-500.0,0.00010518,2]
[348633100,1736691055128,-500.0,0.00010518,2]
[348633101,1736691055138,-615.41,0.00010518,2]
[348633102,1736691055147,-500.0,0.00010518,2]
[348633103,1736691055157,-765.53,0.00010518,2]
[348633104,1736691055166,-500.0,0.00010518,2]
[348633105,1736691055175,-1379.73,0.00010518,2]
[348633106,1736691055185,-500.0,0.00010518,2]
[348633107,1736691055194,-500.0,0.00010518,2]
[348633108,1736691055203,-3500.11,0.00010518,2]
[348633109,1736691055213,-500.0,0.00010518,2]
[348633110,1736691055222,-500.0,0.00010518,2]
[348633111,1736691055232,-500.0,0.00010518,2]
[348633112,1736691055241,-545.23,0.00010518,2]
[348633113,1736691055250,-1386.0,0.00010518,2]
[348633114,1736691055260,-1100.68,0.00010518,2]
[348633115,1736691055270,-3612.69,0.00010518,2]
[348633116,1736691055279,-953.71,0.00010518,2]
[348633117,1736691055288,-1752.99,0.00010518,2]
[348633118,1736691055297,-2546.32,0.00010518,2]
[348633119,1736691055306,-1391.19,0.00010518,2]
[348633120,1736691055315,-1480.46,0.00010518,2]
[348633121,1736691055325,-1939.35,0.00010518,2]
[348633122,1736691055334,-1410.54,0.00010518,2]
[348633123,1736691055343,-500.0,0.00010518,2]
[348633124,1736691055353,-2017.62,0.00010522,2]
[348633125,1736691055362,-1544.08,0.00010522,2]
[348633126,1736691055371,-654.764347,0.00010522,2]
[348633127,1736691055380,-747.840652,0.00010522,2]
[348633128,1736691055390,-3750.08,0.00010522,2]
[348633129,1736691055399,-1159.16,0.00010522,2]
[348633130,1736691055408,-717.74,0.00010522,2]
[348633131,1736691055417,-648.2,0.00010522,2]
[348633132,1736691055427,-500.0,0.00010522,2]
[348633133,1736691055437,-3187.32,0.00010522,2]
[348633134,1736691055446,-500.0,0.00010522,2]
[348633135,1736691055455,-1007.96,0.00010522,2]
[348633136,1736691055464,-2300.03508184,0.00010522,2]
[348633137,1736691055813,-150.00491816,0.00010522,2]
[348633138,1736691055822,-1266.08,0.00010522,2]
[348633139,1736691055832,-647.5,0.00010522,2]
[348633140,1736691055841,-136.86932184,0.00010522,2]
[348633141,1736691055853,-922.76067816,0.00010522,2]
[348633142,1736691055862,-292.27315772,0.00010522,2]
[348633143,1736691056709,-814.85,9.968e-05,2]
[348633144,1736691056718,-694.24021663,9.974e-05,2]
[348633145,1736691056732,-138.37978337,9.974e-05,2]
[348633146,1736691056741,-230.74291871,0.00010242,2]
[348633147,1736691056761,-584.10708129,0.00010242,2]
[348633148,1736691056771,-832.62,0.00010248,2]
[348633149,1736691056781,-814.85,0.00010516,2]
[348633150,1736691056792,-627.29684228,0.00010522,2]
[348633151,1736691056802,-1231.32,0.00010522,2]
[348633152,1736691056812,-875.01,0.00010522,2]
[348633153,1736691056822,-1382.6,0.00010522,2]
[348633154,1736691056831,-1644.57,0.00010522,2]
[348633155,1736691056842,-500.0,0.00010522,2]
[348633156,1736691056851,-597.27,0.00010522,2]
[348633157,1736691056860,-500.0,0.00010522,2]
[348633158,1736691056869,-1143.35,0.00010522,2]
[348633159,1736691056878,-1153.86,0.00010522,2]
[348633160,1736691056888,-832.62,0.00010522,2]
[348633161,1736691056898,-791.83,0.00010523,2]
[348633162,1736691056907,-818.19,0.00010523,2]
[348633163,1736691056916,-1218.42,0.00010523,2]
[348633164,1736691056926,-2421.42,0.00010523,2]
[348633165,1736691056935,-1459.72,0.00010523,2]
[348633166,1736691056944,-1611.75,0.00010523,2]
[348633167,1736691056954,-500.0,0.00010523,2]
[348633168,1736691056963,-1012.53,0.00010523,2]
[348633169,1736691056972,-2492.77,0.00010523,2]
[348633170,1736691056982,-6816.53,0.00010523,2]
[348633171,1736691056991,-1300.44,0.00010523,2]
[348633172,1736691057001,-1800.8,0.00010523,2]
[348633173,1736691057010,-1136.46,0.00010523,2]
[348633174,1736691057019,-500.0,0.00010523,2]
[348633175,1736691057028,-506.14234132,0.00010544,2]
[348633176,1736691057038,-151.0,0.00010547,2]
[348633177,1736691057047,-1000.0,0.00010547,2]
[348633178,1736691057056,-1085.74,0.00010547,2]
[348633179,1736691057065,-500.0,0.00010547,2]
[348633180,1736691057074,-2525.27,0.00010547,2]
[348633181,1736691057083,-2170.44,0.00010547,2]
[348633182,1736691057093,-379.12016341,0.0001057,2]
[348633183,1736691057102,-1000.0,0.00010599,2]
[348633184,1736691057112,-256.56029317,0.000107,2]
[348633185,1736691057121,-587.0,0.00010723,2]
[348633186,1736691057131,-1381.66,0.0001079,2]
[348633187,1736691057140,-1042.82,0.0001079,2]
[348633188,1736691057149,-985.26,0.0001079,2]
[348633189,1736691057158,-500.0,0.0001079,2]
[348633190,1736691057168,-2494.0,0.0001079,2]
[348633191,1736691057176,-1834.07,0.0001079,2]
[348633192,1736691057186,-3548.52,0.0001079,2]
[348633193,1736691057195,-1415.15,0.0001079,2]
[348633194,1736691057204,-500.0,0.0001079,2]
[348633195,1736691057213,-1392.02,0.0001079,2]
[348633196,1736691057222,-3305.98,0.0001079,2]
[348633197,1736691057231,-1121.39,0.0001079,2]
[348633198,1736691057241,-514.02,0.0001079,2]
[348633199,1736691057250,-674.67,0.0001079,2]
[348633200,1736691057259,-941.22,0.0001079,2]
[348633201,1736691057268,-2007.55,0.0001079,2]
[348633202,1736691057277,-613.14,0.0001079,2]
[348633203,1736691057286,-2654.11,0.0001079,2]
[348633204,1736691057295,-814.85,0.0001079,2]
[348633205,1736691057304,-762.21,0.00010791,2]
[348633206,1736691057313,-500.0,0.00010791,2]
[348633207,1736691057322,-500.0,0.00010791,2]
[348633208,1736691057331,-500.0,0.00010791,2]
[348633209,1736691057340,-500.0,0.00010791,2]
[348633210,1736691057349,-500.0,0.00010791,2]
[348633211,1736691057358,-500.0,0.00010791,2]
[348633212,1736691057367,-500.0,0.00010791,2]
[348633213,1736691057376,-500.0,0.00010791,2]
[348633214,1736691057384,-306.85958816,0.00010791,2]
[348633215,1736691057393,-500.0,0.00010791,2]
[348633216,1736691057403,-524.46,0.00010791,2]
[348633217,1736691057412,-707.37,0.00010791,2]
[348633218,1736691057421,-538.31,0.00010791,2]
[348633219,1736691057430,-500.0,0.00010791,2]
[348633220,1736691057439,-500.0,0.00010791,2]
[348633221,1736691057450,-346.85208917,0.00010791,2]
[348633222,1736691057459,-517.29,0.00010791,2]
[348633223,1736691057469,-500.0,0.00010791,2]
[348633224,1736691057479,-1060.81,0.00010791,2]
[348633225,1736691057488,-500.0,0.00010791,2]
[348633226,1736691057498,-500.0,0.00010791,2]
[348633227,1736691057507,-532.11,0.00010791,2]
[348633228,1736691057516,-661.47,0.00010791,2]
[348633229,1736691057525,-874.47,0.00010791,2]
[348633230,1736691057534,-500.0,0.00010791,2]
[348633231,1736691057543,-767.72,0.00010791,2]
[348633232,1736691057552,-918.8,0.00010791,2]
[348633233,1736691057565,-507.65,0.00010791,2]
[348633234,1736691057575,-662.08,0.00010791,2]
[348633235,1736691057584,-539.47,0.00010791,2]
[348633236,1736691057593,-551.37337301,0.00010791,2]
[348633237,1736691057603,-500.0,0.00010791,2]
[348633238,1736691057612,-500.0,0.00010791,2]
[348633239,1736691057621,-500.0,0.00010791,2]
[348633240,1736691057631,-500.0,0.00010791,2]
[348633241,1736691057640,-500.0,0.00010791,2]
[348633242,1736691057650,-512.67,0.00010791,2]
[348633243,1736691057660,-500.0,0.00010791,2]
[348633244,1736691057669,-500.0,0.00010791,2]
[348633245,1736691057678,-500.0,0.00010791,2]
[348633246,1736691057687,-540.32,0.00010791,2]
[348633247,1736691057696,-500.0,0.00010791,2]
[348633248,1736691057705,-505.75,0.00010791,2]
[348633249,1736691057714,-223.76406375,0.00010791,2]
[348633250,1736691057725,-730.91,0.00010791,2]
[348633251,1736691057734,-500.0,0.00010791,2]
[348633252,1736691057743,-824.05,0.00010791,2]
[348633253,1736691057753,-637.8,0.00010791,2]
[348633254,1736691057762,-534.77,0.00010791,2]
[348633255,1736691057771,-901.85,0.00010791,2]
[348633256,1736691057780,-500.0,0.00010791,2]
[348633257,1736691057789,-886.0,0.00010791,2]
[348633258,1736691057799,-500.0,0.00010791,2]
[348633259,1736691057808,-782.7,0.00010791,2]
[348633260,1736691057817,-855.94,0.00010791,2]
[348633261,1736691057826,-500.0,0.00010791,2]
[348633262,1736691057835,-500.0,0.00010791,2]
[348633263,1736691057845,-500.0,0.00010791,2]
[348633264,1736691057854,-582.16,0.00010791,2]
[348633265,1736691057863,-567.41057102,0.00010791,2]
[348633266,1736691057872,-549.67865123,0.00010791,2]
[348633267,1736691057882,-635.94576463,0.00010791,2]
[348633268,1736691057891,-643.78,0.00010791,2]
[348633269,1736691057901,-500.0,0.00010791,2]
[348633270,1736691057910,-500.0,0.00010791,2]
[348633271,1736691057919,-1690.54,0.00010791,2]
[348633272,1736691057929,-661.23,0.00010791,2]
[348633273,1736691057938,-556.62,0.00010791,2]
[348633274,1736691057947,-693.77,0.00010791,2]
[348633275,1736691057956,-571.02,0.00010791,2]
[348633276,1736691057965,-500.0,0.00010791,2]
[348633277,1736691057976,-974.54,0.00010791,2]
[348633278,1736691057986,-500.0,0.00010791,2]
[348633279,1736691057995,-315.43925048,0.00010791,2]
[348633280,1736691058004,-521.0,0.00010791,2]
[348633281,1736691058014,-521.84,0.00010791,2]
[348633282,1736691058023,-500.0,0.00010791,2]
[348633283,1736691058032,-661.73,0.00010791,2]
[348633284,1736691058042,-502.98,0.00010791,2]
[348633285,1736691058052,-688.18,0.00010791,2]
[348633286,1736691058062,-500.0,0.00010791,2]
[348633287,1736691058071,-654.36,0.00010791,2]
[348633288,1736691058081,-500.0,0.00010791,2]
[348633289,1736691058089,-581.15,0.00010791,2]
[348633290,1736691058098,-826.87,0.00010791,2]
[348633291,1736691058108,-651.22,0.00010791,2]
[348633292,1736691058117,-510.76628654,0.00010791,2]
[348633293,1736691058126,-500.0,0.00010791,2]
[348633294,1736691058135,-889.86,0.00010791,2]
[348633295,1736691058145,-570.46,0.00010791,2]
[348633296,1736691058154,-241.23736884,0.00010791,2]
[348633297,1736691058163,-500.0,0.00010791,2]
[348633298,1736691058172,-543.54,0.00010791,2]
[348633299,1736691058182,-500.0,0.00010791,2]
[348633300,1736691058191,-500.0,0.00010791,2]
[348633301,1736691058200,-889.96,0.00010791,2]
[348633302,1736691058210,-500.0,0.00010791,2]
[348633303,1736691058219,-500.0,0.00010791,2]
[348633304,1736691058231,-509.16,0.00010791,2]
[348633305,1736691058240,-513.65,0.00010791,2]
[348633306,1736691058249,-628.04480708,0.00010791,2]
[348633307,1736691058258,-666.16,0.00010791,2]
[348633308,1736691058267,-500.0,0.00010791,2]
[348633309,1736691058277,-500.0,0.00010791,2]
[348633310,1736691058286,-500.0,0.00010791,2]
[348633311,1736691058295,-500.0,0.00010791,2]
[348633312,1736691058304,-500.0,0.00010791,2]
[348633313,1736691058314,-931.13,0.00010791,2]
[348633314,1736691058324,-500.0,0.00010791,2]
[348633315,1736691058334,-500.0,0.00010791,2]
[348633316,1736691058343,-564.18,0.00010791,2]
[348633317,1736691058355,-507.96790213,0.00010791,2]
[348633318,1736691058364,-500.0,0.00010791,2]
[348633319,1736691058376,-599.43,0.00010791,2]
[348633320,1736691058388,-521.28,0.00010791,2]
[348633321,1736691058396,-500.0,0.00010791,2]
[348633322,1736691058407,-500.0,0.00010791,2]
[348633323,1736691058416,-500.0,0.00010791,2]
[348633324,1736691058426,-500.0,0.00010791,2]
[348633325,1736691058437,-500.0,0.00010791,2]
[348633326,1736691058446,-500.0,0.00010791,2]
[348633327,1736691058455,-612.25,0.00010791,2]
[348633328,1736691058466,-500.0,0.00010791,2]
[348633329,1736691058478,-771.97,0.00010791,2]
[348633330,1736691058487,-746.08,0.00010791,2]
[348633331,1736691058496,-823.3,0.00010791,2]
[348633332,1736691058506,-500.0,0.00010791,2]
[348633333,1736691058516,-500.0,0.00010791,2]
[348633334,1736691058526,-832.54,0.00010791,2]
[348633335,1736691058535,-536.52,0.00010791,2]
[348633336,1736691058545,-500.0,0.00010791,2]
[348633337,1736691058557,-906.07,0.00010791,2]
[348633338,1736691058566,-846.45,0.00010791,2]
[348633339,1736691058576,-500.0,0.00010791,2]
[348633340,1736691058586,-500.0,0.00010791,2]
[348633341,1736691058596,-730.46,0.00010791,2]
[348633342,1736691058606,-500.0,0.00010791,2]
[348633343,1736691058615,-512.88,0.00010791,2]
[348633344,1736691058625,-500.0,0.00010791,2]
[348633345,1736691058635,-780.29,0.00010791,2]
[348633346,1736691058645,-739.33,0.00010791,2]
[348633347,1736691058655,-513.5,0.00010791,2]
[348633348,1736691058664,-500.0,0.00010791,2]
[348633349,1736691058673,-2891.62,0.00010791,2]
[348633350,1736691058682,-539.77,0.00010791,2]
[348633351,1736691058692,-945.58,0.00010791,2]
[348633352,1736691058703,-556.11,0.00010791,2]
[348633353,1736691058713,-1234.54,0.00010791,2]
[348633354,1736691058722,-500.0,0.00010791,2]
[348633355,1736691058733,-954.47,0.00010791,2]
[348633356,1736691058742,-2764.81,0.00010791,2]
[348633357,1736691058752,-583.26,0.00010791,2]
[348633358,1736691058761,-881.07,0.00010791,2]
[348633359,1736691058771,-639.94,0.00010791,2]
[348633360,1736691058780,-541.38,0.00010791,2]
[348633361,1736691058790,-1156.13,0.00010791,2]
[348633362,1736691058800,-9249.95,0.00010791,2]
[348633363,1736691058811,-799.31,0.00010791,2]
[348633364,1736691058820,-500.0,0.00010791,2]
[348633365,1736691058830,-256.79585844,0.00010791,2]
[348633366,1736691058841,-939.49,0.00010791,2]
[348633367,1736691058851,-500.0,0.00010791,2]
[348633368,1736691058860,-573.6,0.00010791,2]
[348633369,1736691058870,-970.72,0.00010791,2]
[348633370,1736691058879,-500.0,0.00010791,2]
[348633371,1736691058888,-502.42,0.00010791,2]
[348633372,1736691058898,-500.0,0.00010791,2]
[348633373,1736691058908,-4976.97,0.00010791,2]
[348633374,1736691058920,-616.63,0.00010791,2]
[348633375,1736691058929,-500.0,0.00010791,2]
[348633376,1736691058940,-500.0,0.00010791,2]
[348633377,1736691058949,-1304.87,0.00010791,2]
[348633378,1736691058958,-1044.07,0.00010791,2]
[348633379,1736691058968,-1010.03,0.00010791,2]
[348633380,1736691058978,-534.7558338,0.00010791,2]
[348633381,1736691058987,-525.89,0.00010791,2]
[348633382,1736691058997,-2557.54,0.00010791,2]
[348633383,1736691059006,-999.61,0.00010791,2]
[348633384,1736691059016,-600.68,0.00010791,2]
[348633385,1736691059026,-500.0,0.00010791,2]
[348633386,1736691059036,-500.0,0.00010791,2]
[348633387,1736691059045,-500.0,0.00010791,2]
[348633388,1736691059054,-500.0,0.00010791,2]
[348633389,1736691059064,-3438.24,0.00010791,2]
[348633390,1736691059073,-655.87,0.00010791,2]
[348633391,1736691059083,-2404.43,0.00010791,2]
[348633392,1736691059092,-500.0,0.00010791,2]
[348633393,1736691059101,-181.17219127,0.00010791,2]
[348633394,1736691059111,-500.0,0.00010791,2]
[348633395,1736691059120,-1014.52,0.00010791,2]
[348633396,1736691059130,-1543.51,0.00010791,2]
[348633397,1736691059139,-500.0,0.00010791,2]
[348633398,1736691059148,-714.21,0.00010791,2]
[348633399,1736691059158,-500.0,0.00010791,2]
[348633400,1736691059167,-793.41,0.00010791,2]
[348633401,1736691059177,-643.1,0.00010791,2]
[348633402,1736691059187,-1105.81,0.00010791,2]
[348633403,1736691059196,-584.24,0.00010791,2]
[348633404,1736691059206,-500.0,0.00010791,2]
[348633405,1736691059216,-528.87,0.00010791,2]
[348633406,1736691059226,-500.0,0.00010791,2]
[348633407,1736691059236,-3597.96,0.00010791,2]
[348633408,1736691059246,-507.23,0.00010791,2]
[348633409,1736691059256,-564.53,0.00010791,2]
[348633410,1736691059266,-2317.69,0.00010791,2]
[348633411,1736691059276,-500.0,0.00010791,2]
[348633412,1736691059286,-500.0,0.00010791,2]
[348633413,1736691059295,-500.0,0.00010791,2]
[348633414,1736691059305,-500.0,0.00010791,2]